Workbook

Sheet Haushaltsbuch
A1: Haushaltsbuch
A2: Gesamteinnahmen | B2: =SUM(T_Haushaltsbuch[Einnahmen (€)]) -> € 8,400.00 | C2: Gesamtausgaben | D2: =SUM(T_Haushaltsbuch[Ausgaben (€)]) -> € 3,886.05 | E2: Netto | F2: =B2-D2 -> € 4,513.95 | G2: Aktueller Saldo | H2: =SUM(T_Haushaltsbuch[Netto (€)]) -> € 4,513.95
A5: Datum | B5: Kategorie | C5: Beschreibung | D5: Zahlungsart | E5: Einnahmen (€) | F5: Ausgaben (€) | G5: Netto (€) | H5: Saldo (€) | I5: Monat | J5: Jahr
A6: 2026-01-02 | B6: Gehalt | C6: Gehalt Januar | D6: Überweisung | E6: € 2,800.00 | F6: € 0.00 | G6: =E6-F6 -> € 2,800.00 | H6: =SUM($G$6:G6) -> € 2,800.00 | I6: =IF(A6="","",MONTH(A6)) -> 1 | J6: =IF(A6="","",YEAR(A6)) -> 2026
A7: 2026-01-03 | B7: Miete | C7: Miete Januar | D7: Lastschrift | E7: € 0.00 | F7: € 980.00 | G7: -€ 980.00 | H7: =SUM($G$6:G7) -> € 1,820.00 | I7: 1 | J7: 2026
A8: 2026-01-05 | B8: Lebensmittel | C8: Supermarkt | D8: Karte | E8: € 0.00 | F8: € 82.45 | G8: -€ 82.45 | H8: =SUM($G$6:G8) -> € 1,737.55 | I8: 1 | J8: 2026
A9: 2026-01-07 | B9: Internet/Telefon | C9: Internet | D9: Lastschrift | E9: € 0.00 | F9: € 39.99 | G9: -€ 39.99 | H9: =SUM($G$6:G9) -> € 1,697.56 | I9: 1 | J9: 2026
A10: 2026-01-10 | B10: Transport | C10: ÖPNV Ticket | D10: Karte | E10: € 0.00 | F10: € 49.00 | G10: -€ 49.00 | H10: =SUM($G$6:G10) -> € 1,648.56 | I10: 1 | J10: 2026
A11: 2026-01-13 | B11: Versicherungen | C11: Haftpflicht | D11: Lastschrift | E11: € 0.00 | F11: € 12.50 | G11: -€ 12.50 | H11: =SUM($G$6:G11) -> € 1,636.06 | I11: 1 | J11: 2026
A12: 2026-01-15 | B12: Freizeit | C12: Kino | D12: Karte | E12: € 0.00 | F12: € 18.00 | G12: -€ 18.00 | H12: =SUM($G$6:G12) -> € 1,618.06 | I12: 1 | J12: 2026
A13: 2026-01-18 | B13: Drogerie | C13: Drogerie | D13: Karte | E13: € 0.00 | F13: € 23.90 | G13: -€ 23.90 | H13: =SUM($G$6:G13) -> € 1,594.16 | I13: 1 | J13: 2026
A14: 2026-01-20 | B14: Strom | C14: Strom Abschlag | D14: Lastschrift | E14: € 0.00 | F14: € 65.00 | G14: -€ 65.00 | H14: =SUM($G$6:G14) -> € 1,529.16 | I14: 1 | J14: 2026
A15: 2026-01-25 | B15: Abos | C15: Streaming | D15: PayPal | E15: € 0.00 | F15: € 12.99 | G15: -€ 12.99 | H15: =SUM($G$6:G15) -> € 1,516.17 | I15: 1 | J15: 2026
A16: 2026-02-02 | B16: Gehalt | C16: Gehalt Februar | D16: Überweisung | E16: € 2,800.00 | F16: € 0.00 | G16: € 2,800.00 | H16: =SUM($G$6:G16) -> € 4,316.17 | I16: 2 | J16: 2026
A17: 2026-02-03 | B17: Miete | C17: Miete Februar | D17: Lastschrift | E17: € 0.00 | F17: € 980.00 | G17: -€ 980.00 | H17: =SUM($G$6:G17) -> € 3,336.17 | I17: 2 | J17: 2026
A18: 2026-02-06 | B18: Lebensmittel | C18: Supermarkt | D18: Karte | E18: € 0.00 | F18: € 76.30 | G18: -€ 76.30 | H18: =SUM($G$6:G18) -> € 3,259.87 | I18: 2 | J18: 2026
A19: 2026-02-08 | B19: Gesundheit | C19: Apotheke | D19: Karte | E19: € 0.00 | F19: € 19.80 | G19: -€ 19.80 | H19: =SUM($G$6:G19) -> € 3,240.07 | I19: 2 | J19: 2026
A20: 2026-02-12 | B20: Freizeit | C20: Restaurant | D20: Karte | E20: € 0.00 | F20: € 42.60 | G20: -€ 42.60 | H20: =SUM($G$6:G20) -> € 3,197.47 | I20: 2 | J20: 2026
A21: 2026-02-14 | B21: Kleidung | C21: Jacke | D21: Karte | E21: € 0.00 | F21: € 89.99 | G21: -€ 89.99 | H21: =SUM($G$6:G21) -> € 3,107.48 | I21: 2 | J21: 2026
A22: 2026-02-18 | B22: Nebenkosten | C22: Hausgeld | D22: Überweisung | E22: € 0.00 | F22: € 150.00 | G22: -€ 150.00 | H22: =SUM($G$6:G22) -> € 2,957.48 | I22: 2 | J22: 2026
A23: 2026-02-22 | B23: Bildung | C23: Online-Kurs | D23: PayPal | E23: € 0.00 | F23: € 29.00 | G23: -€ 29.00 | H23: =SUM($G$6:G23) -> € 2,928.48 | I23: 2 | J23: 2026
A24: 2026-02-25 | B24: Abos | C24: Streaming | D24: PayPal | E24: € 0.00 | F24: € 12.99 | G24: -€ 12.99 | H24: =SUM($G$6:G24) -> € 2,915.49 | I24: 2 | J24: 2026
A25: 2026-03-02 | B25: Gehalt | C25: Gehalt März | D25: Überweisung | E25: € 2,800.00 | F25: € 0.00 | G25: € 2,800.00 | H25: =SUM($G$6:G25) -> € 5,715.49 | I25: 3 | J25: 2026
A26: 2026-03-03 | B26: Miete | C26: Miete März | D26: Lastschrift | E26: € 0.00 | F26: € 980.00 | G26: -€ 980.00 | H26: =SUM($G$6:G26) -> € 4,735.49 | I26: 3 | J26: 2026
A27: 2026-03-05 | B27: Lebensmittel | C27: Supermarkt | D27: Karte | E27: € 0.00 | F27: € 91.15 | G27: -€ 91.15 | H27: =SUM($G$6:G27) -> € 4,644.34 | I27: 3 | J27: 2026
A28: 2026-03-09 | B28: Auto | C28: Tanken | D28: Karte | E28: € 0.00 | F28: € 58.40 | G28: -€ 58.40 | H28: =SUM($G$6:G28) -> € 4,585.94 | I28: 3 | J28: 2026
A29: 2026-03-12 | B29: Sonstiges | C29: Geschenk | D29: Bar | E29: € 0.00 | F29: € 25.00 | G29: -€ 25.00 | H29: =SUM($G$6:G29) -> € 4,560.94 | I29: 3 | J29: 2026
A30: 2026-03-18 | B30: Freizeit | C30: Ausflug | D30: Karte | E30: € 0.00 | F30: € 34.00 | G30: -€ 34.00 | H30: =SUM($G$6:G30) -> € 4,526.94 | I30: 3 | J30: 2026
A31: 2026-03-25 | B31: Abos | C31: Streaming | D31: PayPal | E31: € 0.00 | F31: € 12.99 | G31: -€ 12.99 | H31: =SUM($G$6:G31) -> € 4,513.95 | I31: 3 | J31: 2026
G32: € 0.00 | H32: =SUM($G$6:G32) -> € 4,513.95
G33: € 0.00 | H33: =SUM($G$6:G33) -> € 4,513.95
G34: € 0.00 | H34: =SUM($G$6:G34) -> € 4,513.95
G35: € 0.00 | H35: =SUM($G$6:G35) -> € 4,513.95
G36: € 0.00 | H36: =SUM($G$6:G36) -> € 4,513.95
G37: € 0.00 | H37: =SUM($G$6:G37) -> € 4,513.95
G38: € 0.00 | H38: =SUM($G$6:G38) -> € 4,513.95
G39: € 0.00 | H39: =SUM($G$6:G39) -> € 4,513.95
G40: € 0.00 | H40: =SUM($G$6:G40) -> € 4,513.95
G41: € 0.00 | H41: =SUM($G$6:G41) -> € 4,513.95
G42: € 0.00 | H42: =SUM($G$6:G42) -> € 4,513.95
G43: € 0.00 | H43: =SUM($G$6:G43) -> € 4,513.95
G44: € 0.00 | H44: =SUM($G$6:G44) -> € 4,513.95
G45: € 0.00 | H45: =SUM($G$6:G45) -> € 4,513.95
G46: € 0.00 | H46: =SUM($G$6:G46) -> € 4,513.95
G47: € 0.00 | H47: =SUM($G$6:G47) -> € 4,513.95
G48: € 0.00 | H48: =SUM($G$6:G48) -> € 4,513.95
G49: € 0.00 | H49: =SUM($G$6:G49) -> € 4,513.95
G50: € 0.00 | H50: =SUM($G$6:G50) -> € 4,513.95
G51: € 0.00 | H51: =SUM($G$6:G51) -> € 4,513.95
G52: € 0.00 | H52: =SUM($G$6:G52) -> € 4,513.95
G53: € 0.00 | H53: =SUM($G$6:G53) -> € 4,513.95
G54: € 0.00 | H54: =SUM($G$6:G54) -> € 4,513.95
G55: € 0.00 | H55: =SUM($G$6:G55) -> € 4,513.95
G56: € 0.00 | H56: =SUM($G$6:G56) -> € 4,513.95
G57: € 0.00 | H57: =SUM($G$6:G57) -> € 4,513.95
G58: € 0.00 | H58: =SUM($G$6:G58) -> € 4,513.95
G59: € 0.00 | H59: =SUM($G$6:G59) -> € 4,513.95
G60: € 0.00 | H60: =SUM($G$6:G60) -> € 4,513.95
G61: € 0.00 | H61: =SUM($G$6:G61) -> € 4,513.95
G62: € 0.00 | H62: =SUM($G$6:G62) -> € 4,513.95
G63: € 0.00 | H63: =SUM($G$6:G63) -> € 4,513.95
G64: € 0.00 | H64: =SUM($G$6:G64) -> € 4,513.95
G65: € 0.00 | H65: =SUM($G$6:G65) -> € 4,513.95
G66: € 0.00 | H66: =SUM($G$6:G66) -> € 4,513.95
G67: € 0.00 | H67: =SUM($G$6:G67) -> € 4,513.95
G68: € 0.00 | H68: =SUM($G$6:G68) -> € 4,513.95
G69: € 0.00 | H69: =SUM($G$6:G69) -> € 4,513.95
G70: =E70-F70 -> € 0.00 | H70: =SUM($G$6:G70) -> € 4,513.95 | I70: =IF(A70="","",MONTH(A70)) ->  | J70: =IF(A70="","",YEAR(A70)) -> 
G71: € 0.00 | H71: =SUM($G$6:G71) -> € 4,513.95
G72: € 0.00 | H72: =SUM($G$6:G72) -> € 4,513.95
G73: € 0.00 | H73: =SUM($G$6:G73) -> € 4,513.95
G74: € 0.00 | H74: =SUM($G$6:G74) -> € 4,513.95
G75: € 0.00 | H75: =SUM($G$6:G75) -> € 4,513.95
G76: € 0.00 | H76: =SUM($G$6:G76) -> € 4,513.95
G77: € 0.00 | H77: =SUM($G$6:G77) -> € 4,513.95
G78: € 0.00 | H78: =SUM($G$6:G78) -> € 4,513.95
G79: € 0.00 | H79: =SUM($G$6:G79) -> € 4,513.95
G80: € 0.00 | H80: =SUM($G$6:G80) -> € 4,513.95
G81: € 0.00 | H81: =SUM($G$6:G81) -> € 4,513.95
G82: € 0.00 | H82: =SUM($G$6:G82) -> € 4,513.95
G83: € 0.00 | H83: =SUM($G$6:G83) -> € 4,513.95
G84: € 0.00 | H84: =SUM($G$6:G84) -> € 4,513.95
G85: € 0.00 | H85: =SUM($G$6:G85) -> € 4,513.95
G86: € 0.00 | H86: =SUM($G$6:G86) -> € 4,513.95
G87: € 0.00 | H87: =SUM($G$6:G87) -> € 4,513.95
G88: € 0.00 | H88: =SUM($G$6:G88) -> € 4,513.95
G89: € 0.00 | H89: =SUM($G$6:G89) -> € 4,513.95
G90: € 0.00 | H90: =SUM($G$6:G90) -> € 4,513.95
G91: € 0.00 | H91: =SUM($G$6:G91) -> € 4,513.95
G92: € 0.00 | H92: =SUM($G$6:G92) -> € 4,513.95
G93: € 0.00 | H93: =SUM($G$6:G93) -> € 4,513.95
G94: € 0.00 | H94: =SUM($G$6:G94) -> € 4,513.95
G95: € 0.00 | H95: =SUM($G$6:G95) -> € 4,513.95
G96: € 0.00 | H96: =SUM($G$6:G96) -> € 4,513.95
G97: € 0.00 | H97: =SUM($G$6:G97) -> € 4,513.95
G98: € 0.00 | H98: =SUM($G$6:G98) -> € 4,513.95
G99: € 0.00 | H99: =SUM($G$6:G99) -> € 4,513.95
G100: € 0.00 | H100: =SUM($G$6:G100) -> € 4,513.95
G101: € 0.00 | H101: =SUM($G$6:G101) -> € 4,513.95
G102: € 0.00 | H102: =SUM($G$6:G102) -> € 4,513.95
G103: € 0.00 | H103: =SUM($G$6:G103) -> € 4,513.95
G104: € 0.00 | H104: =SUM($G$6:G104) -> € 4,513.95
G105: € 0.00 | H105: =SUM($G$6:G105) -> € 4,513.95
G106: € 0.00 | H106: =SUM($G$6:G106) -> € 4,513.95
G107: € 0.00 | H107: =SUM($G$6:G107) -> € 4,513.95
G108: € 0.00 | H108: =SUM($G$6:G108) -> € 4,513.95
G109: € 0.00 | H109: =SUM($G$6:G109) -> € 4,513.95
G110: € 0.00 | H110: =SUM($G$6:G110) -> € 4,513.95
G111: € 0.00 | H111: =SUM($G$6:G111) -> € 4,513.95
G112: € 0.00 | H112: =SUM($G$6:G112) -> € 4,513.95
G113: € 0.00 | H113: =SUM($G$6:G113) -> € 4,513.95
G114: € 0.00 | H114: =SUM($G$6:G114) -> € 4,513.95
G115: € 0.00 | H115: =SUM($G$6:G115) -> € 4,513.95
G116: € 0.00 | H116: =SUM($G$6:G116) -> € 4,513.95
G117: € 0.00 | H117: =SUM($G$6:G117) -> € 4,513.95
G118: € 0.00 | H118: =SUM($G$6:G118) -> € 4,513.95
G119: € 0.00 | H119: =SUM($G$6:G119) -> € 4,513.95
G120: € 0.00 | H120: =SUM($G$6:G120) -> € 4,513.95
G121: € 0.00 | H121: =SUM($G$6:G121) -> € 4,513.95
G122: € 0.00 | H122: =SUM($G$6:G122) -> € 4,513.95
G123: € 0.00 | H123: =SUM($G$6:G123) -> € 4,513.95
G124: € 0.00 | H124: =SUM($G$6:G124) -> € 4,513.95
G125: € 0.00 | H125: =SUM($G$6:G125) -> € 4,513.95
G126: € 0.00 | H126: =SUM($G$6:G126) -> € 4,513.95
G127: € 0.00 | H127: =SUM($G$6:G127) -> € 4,513.95
G128: € 0.00 | H128: =SUM($G$6:G128) -> € 4,513.95
G129: € 0.00 | H129: =SUM($G$6:G129) -> € 4,513.95
G130: € 0.00 | H130: =SUM($G$6:G130) -> € 4,513.95
G131: € 0.00 | H131: =SUM($G$6:G131) -> € 4,513.95
G132: € 0.00 | H132: =SUM($G$6:G132) -> € 4,513.95
G133: € 0.00 | H133: =SUM($G$6:G133) -> € 4,513.95
G134: =E134-F134 -> € 0.00 | H134: =SUM($G$6:G134) -> € 4,513.95 | I134: =IF(A134="","",MONTH(A134)) ->  | J134: =IF(A134="","",YEAR(A134)) -> 
G135: € 0.00 | H135: =SUM($G$6:G135) -> € 4,513.95
G136: € 0.00 | H136: =SUM($G$6:G136) -> € 4,513.95
G137: € 0.00 | H137: =SUM($G$6:G137) -> € 4,513.95
G138: € 0.00 | H138: =SUM($G$6:G138) -> € 4,513.95
G139: € 0.00 | H139: =SUM($G$6:G139) -> € 4,513.95
G140: € 0.00 | H140: =SUM($G$6:G140) -> € 4,513.95
G141: € 0.00 | H141: =SUM($G$6:G141) -> € 4,513.95
G142: € 0.00 | H142: =SUM($G$6:G142) -> € 4,513.95
G143: € 0.00 | H143: =SUM($G$6:G143) -> € 4,513.95
G144: € 0.00 | H144: =SUM($G$6:G144) -> € 4,513.95
G145: € 0.00 | H145: =SUM($G$6:G145) -> € 4,513.95
G146: € 0.00 | H146: =SUM($G$6:G146) -> € 4,513.95
G147: € 0.00 | H147: =SUM($G$6:G147) -> € 4,513.95
G148: € 0.00 | H148: =SUM($G$6:G148) -> € 4,513.95
G149: € 0.00 | H149: =SUM($G$6:G149) -> € 4,513.95
G150: € 0.00 | H150: =SUM($G$6:G150) -> € 4,513.95
G151: € 0.00 | H151: =SUM($G$6:G151) -> € 4,513.95
G152: € 0.00 | H152: =SUM($G$6:G152) -> € 4,513.95
G153: € 0.00 | H153: =SUM($G$6:G153) -> € 4,513.95
G154: € 0.00 | H154: =SUM($G$6:G154) -> € 4,513.95
G155: € 0.00 | H155: =SUM($G$6:G155) -> € 4,513.95
G156: € 0.00 | H156: =SUM($G$6:G156) -> € 4,513.95
G157: € 0.00 | H157: =SUM($G$6:G157) -> € 4,513.95
G158: € 0.00 | H158: =SUM($G$6:G158) -> € 4,513.95
G159: € 0.00 | H159: =SUM($G$6:G159) -> € 4,513.95
G160: € 0.00 | H160: =SUM($G$6:G160) -> € 4,513.95
G161: € 0.00 | H161: =SUM($G$6:G161) -> € 4,513.95
G162: € 0.00 | H162: =SUM($G$6:G162) -> € 4,513.95
G163: € 0.00 | H163: =SUM($G$6:G163) -> € 4,513.95
G164: € 0.00 | H164: =SUM($G$6:G164) -> € 4,513.95
G165: € 0.00 | H165: =SUM($G$6:G165) -> € 4,513.95
G166: € 0.00 | H166: =SUM($G$6:G166) -> € 4,513.95
G167: € 0.00 | H167: =SUM($G$6:G167) -> € 4,513.95
G168: € 0.00 | H168: =SUM($G$6:G168) -> € 4,513.95
G169: € 0.00 | H169: =SUM($G$6:G169) -> € 4,513.95
G170: € 0.00 | H170: =SUM($G$6:G170) -> € 4,513.95
G171: € 0.00 | H171: =SUM($G$6:G171) -> € 4,513.95
G172: € 0.00 | H172: =SUM($G$6:G172) -> € 4,513.95
G173: € 0.00 | H173: =SUM($G$6:G173) -> € 4,513.95
G174: € 0.00 | H174: =SUM($G$6:G174) -> € 4,513.95
G175: € 0.00 | H175: =SUM($G$6:G175) -> € 4,513.95
G176: € 0.00 | H176: =SUM($G$6:G176) -> € 4,513.95
G177: € 0.00 | H177: =SUM($G$6:G177) -> € 4,513.95
G178: € 0.00 | H178: =SUM($G$6:G178) -> € 4,513.95
G179: € 0.00 | H179: =SUM($G$6:G179) -> € 4,513.95
G180: € 0.00 | H180: =SUM($G$6:G180) -> € 4,513.95
G181: € 0.00 | H181: =SUM($G$6:G181) -> € 4,513.95
G182: € 0.00 | H182: =SUM($G$6:G182) -> € 4,513.95
G183: € 0.00 | H183: =SUM($G$6:G183) -> € 4,513.95
G184: € 0.00 | H184: =SUM($G$6:G184) -> € 4,513.95
G185: € 0.00 | H185: =SUM($G$6:G185) -> € 4,513.95
G186: € 0.00 | H186: =SUM($G$6:G186) -> € 4,513.95
G187: € 0.00 | H187: =SUM($G$6:G187) -> € 4,513.95
G188: € 0.00 | H188: =SUM($G$6:G188) -> € 4,513.95
G189: € 0.00 | H189: =SUM($G$6:G189) -> € 4,513.95
G190: € 0.00 | H190: =SUM($G$6:G190) -> € 4,513.95
G191: € 0.00 | H191: =SUM($G$6:G191) -> € 4,513.95
G192: € 0.00 | H192: =SUM($G$6:G192) -> € 4,513.95
G193: € 0.00 | H193: =SUM($G$6:G193) -> € 4,513.95
G194: € 0.00 | H194: =SUM($G$6:G194) -> € 4,513.95
G195: € 0.00 | H195: =SUM($G$6:G195) -> € 4,513.95
G196: € 0.00 | H196: =SUM($G$6:G196) -> € 4,513.95
G197: € 0.00 | H197: =SUM($G$6:G197) -> € 4,513.95
G198: =E198-F198 -> € 0.00 | H198: =SUM($G$6:G198) -> € 4,513.95 | I198: =IF(A198="","",MONTH(A198)) ->  | J198: =IF(A198="","",YEAR(A198)) -> 
G199: € 0.00 | H199: =SUM($G$6:G199) -> € 4,513.95
G200: € 0.00 | H200: =SUM($G$6:G200) -> € 4,513.95
G201: € 0.00 | H201: =SUM($G$6:G201) -> € 4,513.95
G202: € 0.00 | H202: =SUM($G$6:G202) -> € 4,513.95
... 103 more rows

Sheet Listen
A1: Kategorien | D1: Zahlungsarten | G1: Jahre | J1: Monate
A2: Gehalt | D2: Bar | G2: 2024 | J2: 1
A3: Miete | D3: Karte | G3: 2025 | J3: 2
A4: Nebenkosten | D4: Überweisung | G4: 2026 | J4: 3
A5: Strom | D5: Lastschrift | G5: 2027 | J5: 4
A6: Internet/Telefon | D6: PayPal | G6: 2028 | J6: 5
A7: Lebensmittel | D7: Sonstiges | G7: 2029 | J7: 6
A8: Drogerie | G8: 2030 | J8: 7
A9: Transport | J9: 8
A10: Auto | J10: 9
A11: Gesundheit | J11: 10
A12: Versicherungen | J12: 11
A13: Abos | J13: 12
A14: Freizeit
A15: Kleidung
A16: Bildung
A17: Sonstiges

Sheet Auswertung
A1: Auswertung
A2: Jahr | B2: 2026 | C2: Monat | D2: 1
A4: Ausgaben nach Kategorie (Monat)
A5: Kategorie | B5: Betrag (€)
A6: =IF(Listen!A2="","",Listen!A2) -> Gehalt | B6: =IF($A6="","",SUMIFS(T_Haushaltsbuch[Ausgaben (€)],T_Haushaltsbuch[Kategorie],$A6,T_Haushaltsbuch[Jahr],$B$2,T_Haushaltsbuch[Monat],$D$2)) -> € 0.00
A7: =IF(Listen!A3="","",Listen!A3) -> Miete | B7: =IF($A7="","",SUMIFS(T_Haushaltsbuch[Ausgaben (€)],T_Haushaltsbuch[Kategorie],$A7,T_Haushaltsbuch[Jahr],$B$2,T_Haushaltsbuch[Monat],$D$2)) -> € 980.00
A8: =IF(Listen!A4="","",Listen!A4) -> Nebenkosten | B8: =IF($A8="","",SUMIFS(T_Haushaltsbuch[Ausgaben (€)],T_Haushaltsbuch[Kategorie],$A8,T_Haushaltsbuch[Jahr],$B$2,T_Haushaltsbuch[Monat],$D$2)) -> € 0.00
A9: =IF(Listen!A5="","",Listen!A5) -> Strom | B9: =IF($A9="","",SUMIFS(T_Haushaltsbuch[Ausgaben (€)],T_Haushaltsbuch[Kategorie],$A9,T_Haushaltsbuch[Jahr],$B$2,T_Haushaltsbuch[Monat],$D$2)) -> € 65.00
A10: =IF(Listen!A6="","",Listen!A6) -> Internet/Telefon | B10: =IF($A10="","",SUMIFS(T_Haushaltsbuch[Ausgaben (€)],T_Haushaltsbuch[Kategorie],$A10,T_Haushaltsbuch[Jahr],$B$2,T_Haushaltsbuch[Monat],$D$2)) -> € 39.99
A11: =IF(Listen!A7="","",Listen!A7) -> Lebensmittel | B11: =IF($A11="","",SUMIFS(T_Haushaltsbuch[Ausgaben (€)],T_Haushaltsbuch[Kategorie],$A11,T_Haushaltsbuch[Jahr],$B$2,T_Haushaltsbuch[Monat],$D$2)) -> € 82.45
A12: =IF(Listen!A8="","",Listen!A8) -> Drogerie | B12: =IF($A12="","",SUMIFS(T_Haushaltsbuch[Ausgaben (€)],T_Haushaltsbuch[Kategorie],$A12,T_Haushaltsbuch[Jahr],$B$2,T_Haushaltsbuch[Monat],$D$2)) -> € 23.90
A13: =IF(Listen!A9="","",Listen!A9) -> Transport | B13: =IF($A13="","",SUMIFS(T_Haushaltsbuch[Ausgaben (€)],T_Haushaltsbuch[Kategorie],$A13,T_Haushaltsbuch[Jahr],$B$2,T_Haushaltsbuch[Monat],$D$2)) -> € 49.00
A14: =IF(Listen!A10="","",Listen!A10) -> Auto | B14: =IF($A14="","",SUMIFS(T_Haushaltsbuch[Ausgaben (€)],T_Haushaltsbuch[Kategorie],$A14,T_Haushaltsbuch[Jahr],$B$2,T_Haushaltsbuch[Monat],$D$2)) -> € 0.00
A15: =IF(Listen!A11="","",Listen!A11) -> Gesundheit | B15: =IF($A15="","",SUMIFS(T_Haushaltsbuch[Ausgaben (€)],T_Haushaltsbuch[Kategorie],$A15,T_Haushaltsbuch[Jahr],$B$2,T_Haushaltsbuch[Monat],$D$2)) -> € 0.00
A16: =IF(Listen!A12="","",Listen!A12) -> Versicherungen | B16: =IF($A16="","",SUMIFS(T_Haushaltsbuch[Ausgaben (€)],T_Haushaltsbuch[Kategorie],$A16,T_Haushaltsbuch[Jahr],$B$2,T_Haushaltsbuch[Monat],$D$2)) -> € 12.50
A17: =IF(Listen!A13="","",Listen!A13) -> Abos | B17: =IF($A17="","",SUMIFS(T_Haushaltsbuch[Ausgaben (€)],T_Haushaltsbuch[Kategorie],$A17,T_Haushaltsbuch[Jahr],$B$2,T_Haushaltsbuch[Monat],$D$2)) -> € 12.99
A18: =IF(Listen!A14="","",Listen!A14) -> Freizeit | B18: =IF($A18="","",SUMIFS(T_Haushaltsbuch[Ausgaben (€)],T_Haushaltsbuch[Kategorie],$A18,T_Haushaltsbuch[Jahr],$B$2,T_Haushaltsbuch[Monat],$D$2)) -> € 18.00
A19: =IF(Listen!A15="","",Listen!A15) -> Kleidung | B19: =IF($A19="","",SUMIFS(T_Haushaltsbuch[Ausgaben (€)],T_Haushaltsbuch[Kategorie],$A19,T_Haushaltsbuch[Jahr],$B$2,T_Haushaltsbuch[Monat],$D$2)) -> € 0.00
A20: =IF(Listen!A16="","",Listen!A16) -> Bildung | B20: =IF($A20="","",SUMIFS(T_Haushaltsbuch[Ausgaben (€)],T_Haushaltsbuch[Kategorie],$A20,T_Haushaltsbuch[Jahr],$B$2,T_Haushaltsbuch[Monat],$D$2)) -> € 0.00
A21: =IF(Listen!A17="","",Listen!A17) -> Sonstiges | B21: =IF($A21="","",SUMIFS(T_Haushaltsbuch[Ausgaben (€)],T_Haushaltsbuch[Kategorie],$A21,T_Haushaltsbuch[Jahr],$B$2,T_Haushaltsbuch[Monat],$D$2)) -> € 0.00
A22: =IF(Listen!A18="","",Listen!A18) ->  | B22: =IF($A22="","",SUMIFS(T_Haushaltsbuch[Ausgaben (€)],T_Haushaltsbuch[Kategorie],$A22,T_Haushaltsbuch[Jahr],$B$2,T_Haushaltsbuch[Monat],$D$2)) -> 
A23: =IF(Listen!A19="","",Listen!A19) ->  | B23: =IF($A23="","",SUMIFS(T_Haushaltsbuch[Ausgaben (€)],T_Haushaltsbuch[Kategorie],$A23,T_Haushaltsbuch[Jahr],$B$2,T_Haushaltsbuch[Monat],$D$2)) -> 
A24: =IF(Listen!A20="","",Listen!A20) ->  | B24: =IF($A24="","",SUMIFS(T_Haushaltsbuch[Ausgaben (€)],T_Haushaltsbuch[Kategorie],$A24,T_Haushaltsbuch[Jahr],$B$2,T_Haushaltsbuch[Monat],$D$2)) -> 
A25: =IF(Listen!A21="","",Listen!A21) ->  | B25: =IF($A25="","",SUMIFS(T_Haushaltsbuch[Ausgaben (€)],T_Haushaltsbuch[Kategorie],$A25,T_Haushaltsbuch[Jahr],$B$2,T_Haushaltsbuch[Monat],$D$2)) ->  | C25: Total Einnahmen | D25: =SUMIFS(T_Haushaltsbuch[Einnahmen (€)],T_Haushaltsbuch[Jahr],$B$2,T_Haushaltsbuch[Monat],$D$2) -> € 2,800.00
A26: Total Ausgaben | B26: =SUM(B6:B25) -> € 1,283.83 | C26: Netto (Monat) | D26: =D25-B26 -> € 1,516.17
A29: Ausgaben (Jahr) nach Kategorie und Monat
A30: Kategorie | B30: Jan | C30: Feb | D30: Mär | E30: Apr | F30: Mai | G30: Jun | H30: Jul | I30: Aug | J30: Sep | K30: Okt | L30: Nov | M30: Dez
A31: =IF(Listen!A2="","",Listen!A2) -> Gehalt | B31: =IF($A31="","",SUMIFS(T_Haushaltsbuch[Ausgaben (€)],T_Haushaltsbuch[Kategorie],$A31,T_Haushaltsbuch[Jahr],$B$2,T_Haushaltsbuch[Monat],1)) -> € 0.00 | C31: =IF($A31="","",SUMIFS(T_Haushaltsbuch[Ausgaben (€)],T_Haushaltsbuch[Kategorie],$A31,T_Haushaltsbuch[Jahr],$B$2,T_Haushaltsbuch[Monat],2)) -> € 0.00 | D31: =IF($A31="","",SUMIFS(T_Haushaltsbuch[Ausgaben (€)],T_Haushaltsbuch[Kategorie],$A31,T_Haushaltsbuch[Jahr],$B$2,T_Haushaltsbuch[Monat],3)) -> € 0.00 | E31: =IF($A31="","",SUMIFS(T_Haushaltsbuch[Ausgaben (€)],T_Haushaltsbuch[Kategorie],$A31,T_Haushaltsbuch[Jahr],$B$2,T_Haushaltsbuch[Monat],4)) -> € 0.00 | F31: =IF($A31="","",SUMIFS(T_Haushaltsbuch[Ausgaben (€)],T_Haushaltsbuch[Kategorie],$A31,T_Haushaltsbuch[Jahr],$B$2,T_Haushaltsbuch[Monat],5)) -> € 0.00 | G31: =IF($A31="","",SUMIFS(T_Haushaltsbuch[Ausgaben (€)],T_Haushaltsbuch[Kategorie],$A31,T_Haushaltsbuch[Jahr],$B$2,T_Haushaltsbuch[Monat],6)) -> € 0.00 | H31: =IF($A31="","",SUMIFS(T_Haushaltsbuch[Ausgaben (€)],T_Haushaltsbuch[Kategorie],$A31,T_Haushaltsbuch[Jahr],$B$2,T_Haushaltsbuch[Monat],7)) -> € 0.00 | I31: =IF($A31="","",SUMIFS(T_Haushaltsbuch[Ausgaben (€)],T_Haushaltsbuch[Kategorie],$A31,T_Haushaltsbuch[Jahr],$B$2,T_Haushaltsbuch[Monat],8)) -> € 0.00 | J31: =IF($A31="","",SUMIFS(T_Haushaltsbuch[Ausgaben (€)],T_Haushaltsbuch[Kategorie],$A31,T_Haushaltsbuch[Jahr],$B$2,T_Haushaltsbuch[Monat],9)) -> € 0.00 | K31: =IF($A31="","",SUMIFS(T_Haushaltsbuch[Ausgaben (€)],T_Haushaltsbuch[Kategorie],$A31,T_Haushaltsbuch[Jahr],$B$2,T_Haushaltsbuch[Monat],10)) -> € 0.00 | L31: =IF($A31="","",SUMIFS(T_Haushaltsbuch[Ausgaben (€)],T_Haushaltsbuch[Kategorie],$A31,T_Haushaltsbuch[Jahr],$B$2,T_Haushaltsbuch[Monat],11)) -> € 0.00 | M31: =IF($A31="","",SUMIFS(T_Haushaltsbuch[Ausgaben (€)],T_Haushaltsbuch[Kategorie],$A31,T_Haushaltsbuch[Jahr],$B$2,T_Haushaltsbuch[Monat],12)) -> € 0.00
A32: =IF(Listen!A3="","",Listen!A3) -> Miete | B32: =IF($A32="","",SUMIFS(T_Haushaltsbuch[Ausgaben (€)],T_Haushaltsbuch[Kategorie],$A32,T_Haushaltsbuch[Jahr],$B$2,T_Haushaltsbuch[Monat],1)) -> € 980.00 | C32: =IF($A32="","",SUMIFS(T_Haushaltsbuch[Ausgaben (€)],T_Haushaltsbuch[Kategorie],$A32,T_Haushaltsbuch[Jahr],$B$2,T_Haushaltsbuch[Monat],2)) -> € 980.00 | D32: =IF($A32="","",SUMIFS(T_Haushaltsbuch[Ausgaben (€)],T_Haushaltsbuch[Kategorie],$A32,T_Haushaltsbuch[Jahr],$B$2,T_Haushaltsbuch[Monat],3)) -> € 980.00 | E32: =IF($A32="","",SUMIFS(T_Haushaltsbuch[Ausgaben (€)],T_Haushaltsbuch[Kategorie],$A32,T_Haushaltsbuch[Jahr],$B$2,T_Haushaltsbuch[Monat],4)) -> € 0.00 | F32: =IF($A32="","",SUMIFS(T_Haushaltsbuch[Ausgaben (€)],T_Haushaltsbuch[Kategorie],$A32,T_Haushaltsbuch[Jahr],$B$2,T_Haushaltsbuch[Monat],5)) -> € 0.00 | G32: =IF($A32="","",SUMIFS(T_Haushaltsbuch[Ausgaben (€)],T_Haushaltsbuch[Kategorie],$A32,T_Haushaltsbuch[Jahr],$B$2,T_Haushaltsbuch[Monat],6)) -> € 0.00 | H32: =IF($A32="","",SUMIFS(T_Haushaltsbuch[Ausgaben (€)],T_Haushaltsbuch[Kategorie],$A32,T_Haushaltsbuch[Jahr],$B$2,T_Haushaltsbuch[Monat],7)) -> € 0.00 | I32: =IF($A32="","",SUMIFS(T_Haushaltsbuch[Ausgaben (€)],T_Haushaltsbuch[Kategorie],$A32,T_Haushaltsbuch[Jahr],$B$2,T_Haushaltsbuch[Monat],8)) -> € 0.00 | J32: =IF($A32="","",SUMIFS(T_Haushaltsbuch[Ausgaben (€)],T_Haushaltsbuch[Kategorie],$A32,T_Haushaltsbuch[Jahr],$B$2,T_Haushaltsbuch[Monat],9)) -> € 0.00 | K32: =IF($A32="","",SUMIFS(T_Haushaltsbuch[Ausgaben (€)],T_Haushaltsbuch[Kategorie],$A32,T_Haushaltsbuch[Jahr],$B$2,T_Haushaltsbuch[Monat],10)) -> € 0.00 | L32: =IF($A32="","",SUMIFS(T_Haushaltsbuch[Ausgaben (€)],T_Haushaltsbuch[Kategorie],$A32,T_Haushaltsbuch[Jahr],$B$2,T_Haushaltsbuch[Monat],11)) -> € 0.00 | M32: =IF($A32="","",SUMIFS(T_Haushaltsbuch[Ausgaben (€)],T_Haushaltsbuch[Kategorie],$A32,T_Haushaltsbuch[Jahr],$B$2,T_Haushaltsbuch[Monat],12)) -> € 0.00
A33: =IF(Listen!A4="","",Listen!A4) -> Nebenkosten | B33: =IF($A33="","",SUMIFS(T_Haushaltsbuch[Ausgaben (€)],T_Haushaltsbuch[Kategorie],$A33,T_Haushaltsbuch[Jahr],$B$2,T_Haushaltsbuch[Monat],1)) -> € 0.00 | C33: =IF($A33="","",SUMIFS(T_Haushaltsbuch[Ausgaben (€)],T_Haushaltsbuch[Kategorie],$A33,T_Haushaltsbuch[Jahr],$B$2,T_Haushaltsbuch[Monat],2)) -> € 150.00 | D33: =IF($A33="","",SUMIFS(T_Haushaltsbuch[Ausgaben (€)],T_Haushaltsbuch[Kategorie],$A33,T_Haushaltsbuch[Jahr],$B$2,T_Haushaltsbuch[Monat],3)) -> € 0.00 | E33: =IF($A33="","",SUMIFS(T_Haushaltsbuch[Ausgaben (€)],T_Haushaltsbuch[Kategorie],$A33,T_Haushaltsbuch[Jahr],$B$2,T_Haushaltsbuch[Monat],4)) -> € 0.00 | F33: =IF($A33="","",SUMIFS(T_Haushaltsbuch[Ausgaben (€)],T_Haushaltsbuch[Kategorie],$A33,T_Haushaltsbuch[Jahr],$B$2,T_Haushaltsbuch[Monat],5)) -> € 0.00 | G33: =IF($A33="","",SUMIFS(T_Haushaltsbuch[Ausgaben (€)],T_Haushaltsbuch[Kategorie],$A33,T_Haushaltsbuch[Jahr],$B$2,T_Haushaltsbuch[Monat],6)) -> € 0.00 | H33: =IF($A33="","",SUMIFS(T_Haushaltsbuch[Ausgaben (€)],T_Haushaltsbuch[Kategorie],$A33,T_Haushaltsbuch[Jahr],$B$2,T_Haushaltsbuch[Monat],7)) -> € 0.00 | I33: =IF($A33="","",SUMIFS(T_Haushaltsbuch[Ausgaben (€)],T_Haushaltsbuch[Kategorie],$A33,T_Haushaltsbuch[Jahr],$B$2,T_Haushaltsbuch[Monat],8)) -> € 0.00 | J33: =IF($A33="","",SUMIFS(T_Haushaltsbuch[Ausgaben (€)],T_Haushaltsbuch[Kategorie],$A33,T_Haushaltsbuch[Jahr],$B$2,T_Haushaltsbuch[Monat],9)) -> € 0.00 | K33: =IF($A33="","",SUMIFS(T_Haushaltsbuch[Ausgaben (€)],T_Haushaltsbuch[Kategorie],$A33,T_Haushaltsbuch[Jahr],$B$2,T_Haushaltsbuch[Monat],10)) -> € 0.00 | L33: =IF($A33="","",SUMIFS(T_Haushaltsbuch[Ausgaben (€)],T_Haushaltsbuch[Kategorie],$A33,T_Haushaltsbuch[Jahr],$B$2,T_Haushaltsbuch[Monat],11)) -> € 0.00 | M33: =IF($A33="","",SUMIFS(T_Haushaltsbuch[Ausgaben (€)],T_Haushaltsbuch[Kategorie],$A33,T_Haushaltsbuch[Jahr],$B$2,T_Haushaltsbuch[Monat],12)) -> € 0.00
A34: =IF(Listen!A5="","",Listen!A5) -> Strom | B34: =IF($A34="","",SUMIFS(T_Haushaltsbuch[Ausgaben (€)],T_Haushaltsbuch[Kategorie],$A34,T_Haushaltsbuch[Jahr],$B$2,T_Haushaltsbuch[Monat],1)) -> € 65.00 | C34: =IF($A34="","",SUMIFS(T_Haushaltsbuch[Ausgaben (€)],T_Haushaltsbuch[Kategorie],$A34,T_Haushaltsbuch[Jahr],$B$2,T_Haushaltsbuch[Monat],2)) -> € 0.00 | D34: =IF($A34="","",SUMIFS(T_Haushaltsbuch[Ausgaben (€)],T_Haushaltsbuch[Kategorie],$A34,T_Haushaltsbuch[Jahr],$B$2,T_Haushaltsbuch[Monat],3)) -> € 0.00 | E34: =IF($A34="","",SUMIFS(T_Haushaltsbuch[Ausgaben (€)],T_Haushaltsbuch[Kategorie],$A34,T_Haushaltsbuch[Jahr],$B$2,T_Haushaltsbuch[Monat],4)) -> € 0.00 | F34: =IF($A34="","",SUMIFS(T_Haushaltsbuch[Ausgaben (€)],T_Haushaltsbuch[Kategorie],$A34,T_Haushaltsbuch[Jahr],$B$2,T_Haushaltsbuch[Monat],5)) -> € 0.00 | G34: =IF($A34="","",SUMIFS(T_Haushaltsbuch[Ausgaben (€)],T_Haushaltsbuch[Kategorie],$A34,T_Haushaltsbuch[Jahr],$B$2,T_Haushaltsbuch[Monat],6)) -> € 0.00 | H34: =IF($A34="","",SUMIFS(T_Haushaltsbuch[Ausgaben (€)],T_Haushaltsbuch[Kategorie],$A34,T_Haushaltsbuch[Jahr],$B$2,T_Haushaltsbuch[Monat],7)) -> € 0.00 | I34: =IF($A34="","",SUMIFS(T_Haushaltsbuch[Ausgaben (€)],T_Haushaltsbuch[Kategorie],$A34,T_Haushaltsbuch[Jahr],$B$2,T_Haushaltsbuch[Monat],8)) -> € 0.00 | J34: =IF($A34="","",SUMIFS(T_Haushaltsbuch[Ausgaben (€)],T_Haushaltsbuch[Kategorie],$A34,T_Haushaltsbuch[Jahr],$B$2,T_Haushaltsbuch[Monat],9)) -> € 0.00 | K34: =IF($A34="","",SUMIFS(T_Haushaltsbuch[Ausgaben (€)],T_Haushaltsbuch[Kategorie],$A34,T_Haushaltsbuch[Jahr],$B$2,T_Haushaltsbuch[Monat],10)) -> € 0.00 | L34: =IF($A34="","",SUMIFS(T_Haushaltsbuch[Ausgaben (€)],T_Haushaltsbuch[Kategorie],$A34,T_Haushaltsbuch[Jahr],$B$2,T_Haushaltsbuch[Monat],11)) -> € 0.00 | M34: =IF($A34="","",SUMIFS(T_Haushaltsbuch[Ausgaben (€)],T_Haushaltsbuch[Kategorie],$A34,T_Haushaltsbuch[Jahr],$B$2,T_Haushaltsbuch[Monat],12)) -> € 0.00
A35: =IF(Listen!A6="","",Listen!A6) -> Internet/Telefon | B35: =IF($A35="","",SUMIFS(T_Haushaltsbuch[Ausgaben (€)],T_Haushaltsbuch[Kategorie],$A35,T_Haushaltsbuch[Jahr],$B$2,T_Haushaltsbuch[Monat],1)) -> € 39.99 | C35: =IF($A35="","",SUMIFS(T_Haushaltsbuch[Ausgaben (€)],T_Haushaltsbuch[Kategorie],$A35,T_Haushaltsbuch[Jahr],$B$2,T_Haushaltsbuch[Monat],2)) -> € 0.00 | D35: =IF($A35="","",SUMIFS(T_Haushaltsbuch[Ausgaben (€)],T_Haushaltsbuch[Kategorie],$A35,T_Haushaltsbuch[Jahr],$B$2,T_Haushaltsbuch[Monat],3)) -> € 0.00 | E35: =IF($A35="","",SUMIFS(T_Haushaltsbuch[Ausgaben (€)],T_Haushaltsbuch[Kategorie],$A35,T_Haushaltsbuch[Jahr],$B$2,T_Haushaltsbuch[Monat],4)) -> € 0.00 | F35: =IF($A35="","",SUMIFS(T_Haushaltsbuch[Ausgaben (€)],T_Haushaltsbuch[Kategorie],$A35,T_Haushaltsbuch[Jahr],$B$2,T_Haushaltsbuch[Monat],5)) -> € 0.00 | G35: =IF($A35="","",SUMIFS(T_Haushaltsbuch[Ausgaben (€)],T_Haushaltsbuch[Kategorie],$A35,T_Haushaltsbuch[Jahr],$B$2,T_Haushaltsbuch[Monat],6)) -> € 0.00 | H35: =IF($A35="","",SUMIFS(T_Haushaltsbuch[Ausgaben (€)],T_Haushaltsbuch[Kategorie],$A35,T_Haushaltsbuch[Jahr],$B$2,T_Haushaltsbuch[Monat],7)) -> € 0.00 | I35: =IF($A35="","",SUMIFS(T_Haushaltsbuch[Ausgaben (€)],T_Haushaltsbuch[Kategorie],$A35,T_Haushaltsbuch[Jahr],$B$2,T_Haushaltsbuch[Monat],8)) -> € 0.00 | J35: =IF($A35="","",SUMIFS(T_Haushaltsbuch[Ausgaben (€)],T_Haushaltsbuch[Kategorie],$A35,T_Haushaltsbuch[Jahr],$B$2,T_Haushaltsbuch[Monat],9)) -> € 0.00 | K35: =IF($A35="","",SUMIFS(T_Haushaltsbuch[Ausgaben (€)],T_Haushaltsbuch[Kategorie],$A35,T_Haushaltsbuch[Jahr],$B$2,T_Haushaltsbuch[Monat],10)) -> € 0.00 | L35: =IF($A35="","",SUMIFS(T_Haushaltsbuch[Ausgaben (€)],T_Haushaltsbuch[Kategorie],$A35,T_Haushaltsbuch[Jahr],$B$2,T_Haushaltsbuch[Monat],11)) -> € 0.00 | M35: =IF($A35="","",SUMIFS(T_Haushaltsbuch[Ausgaben (€)],T_Haushaltsbuch[Kategorie],$A35,T_Haushaltsbuch[Jahr],$B$2,T_Haushaltsbuch[Monat],12)) -> € 0.00
A36: =IF(Listen!A7="","",Listen!A7) -> Lebensmittel | B36: =IF($A36="","",SUMIFS(T_Haushaltsbuch[Ausgaben (€)],T_Haushaltsbuch[Kategorie],$A36,T_Haushaltsbuch[Jahr],$B$2,T_Haushaltsbuch[Monat],1)) -> € 82.45 | C36: =IF($A36="","",SUMIFS(T_Haushaltsbuch[Ausgaben (€)],T_Haushaltsbuch[Kategorie],$A36,T_Haushaltsbuch[Jahr],$B$2,T_Haushaltsbuch[Monat],2)) -> € 76.30 | D36: =IF($A36="","",SUMIFS(T_Haushaltsbuch[Ausgaben (€)],T_Haushaltsbuch[Kategorie],$A36,T_Haushaltsbuch[Jahr],$B$2,T_Haushaltsbuch[Monat],3)) -> € 91.15 | E36: =IF($A36="","",SUMIFS(T_Haushaltsbuch[Ausgaben (€)],T_Haushaltsbuch[Kategorie],$A36,T_Haushaltsbuch[Jahr],$B$2,T_Haushaltsbuch[Monat],4)) -> € 0.00 | F36: =IF($A36="","",SUMIFS(T_Haushaltsbuch[Ausgaben (€)],T_Haushaltsbuch[Kategorie],$A36,T_Haushaltsbuch[Jahr],$B$2,T_Haushaltsbuch[Monat],5)) -> € 0.00 | G36: =IF($A36="","",SUMIFS(T_Haushaltsbuch[Ausgaben (€)],T_Haushaltsbuch[Kategorie],$A36,T_Haushaltsbuch[Jahr],$B$2,T_Haushaltsbuch[Monat],6)) -> € 0.00 | H36: =IF($A36="","",SUMIFS(T_Haushaltsbuch[Ausgaben (€)],T_Haushaltsbuch[Kategorie],$A36,T_Haushaltsbuch[Jahr],$B$2,T_Haushaltsbuch[Monat],7)) -> € 0.00 | I36: =IF($A36="","",SUMIFS(T_Haushaltsbuch[Ausgaben (€)],T_Haushaltsbuch[Kategorie],$A36,T_Haushaltsbuch[Jahr],$B$2,T_Haushaltsbuch[Monat],8)) -> € 0.00 | J36: =IF($A36="","",SUMIFS(T_Haushaltsbuch[Ausgaben (€)],T_Haushaltsbuch[Kategorie],$A36,T_Haushaltsbuch[Jahr],$B$2,T_Haushaltsbuch[Monat],9)) -> € 0.00 | K36: =IF($A36="","",SUMIFS(T_Haushaltsbuch[Ausgaben (€)],T_Haushaltsbuch[Kategorie],$A36,T_Haushaltsbuch[Jahr],$B$2,T_Haushaltsbuch[Monat],10)) -> € 0.00 | L36: =IF($A36="","",SUMIFS(T_Haushaltsbuch[Ausgaben (€)],T_Haushaltsbuch[Kategorie],$A36,T_Haushaltsbuch[Jahr],$B$2,T_Haushaltsbuch[Monat],11)) -> € 0.00 | M36: =IF($A36="","",SUMIFS(T_Haushaltsbuch[Ausgaben (€)],T_Haushaltsbuch[Kategorie],$A36,T_Haushaltsbuch[Jahr],$B$2,T_Haushaltsbuch[Monat],12)) -> € 0.00
A37: =IF(Listen!A8="","",Listen!A8) -> Drogerie | B37: =IF($A37="","",SUMIFS(T_Haushaltsbuch[Ausgaben (€)],T_Haushaltsbuch[Kategorie],$A37,T_Haushaltsbuch[Jahr],$B$2,T_Haushaltsbuch[Monat],1)) -> € 23.90 | C37: =IF($A37="","",SUMIFS(T_Haushaltsbuch[Ausgaben (€)],T_Haushaltsbuch[Kategorie],$A37,T_Haushaltsbuch[Jahr],$B$2,T_Haushaltsbuch[Monat],2)) -> € 0.00 | D37: =IF($A37="","",SUMIFS(T_Haushaltsbuch[Ausgaben (€)],T_Haushaltsbuch[Kategorie],$A37,T_Haushaltsbuch[Jahr],$B$2,T_Haushaltsbuch[Monat],3)) -> € 0.00 | E37: =IF($A37="","",SUMIFS(T_Haushaltsbuch[Ausgaben (€)],T_Haushaltsbuch[Kategorie],$A37,T_Haushaltsbuch[Jahr],$B$2,T_Haushaltsbuch[Monat],4)) -> € 0.00 | F37: =IF($A37="","",SUMIFS(T_Haushaltsbuch[Ausgaben (€)],T_Haushaltsbuch[Kategorie],$A37,T_Haushaltsbuch[Jahr],$B$2,T_Haushaltsbuch[Monat],5)) -> € 0.00 | G37: =IF($A37="","",SUMIFS(T_Haushaltsbuch[Ausgaben (€)],T_Haushaltsbuch[Kategorie],$A37,T_Haushaltsbuch[Jahr],$B$2,T_Haushaltsbuch[Monat],6)) -> € 0.00 | H37: =IF($A37="","",SUMIFS(T_Haushaltsbuch[Ausgaben (€)],T_Haushaltsbuch[Kategorie],$A37,T_Haushaltsbuch[Jahr],$B$2,T_Haushaltsbuch[Monat],7)) -> € 0.00 | I37: =IF($A37="","",SUMIFS(T_Haushaltsbuch[Ausgaben (€)],T_Haushaltsbuch[Kategorie],$A37,T_Haushaltsbuch[Jahr],$B$2,T_Haushaltsbuch[Monat],8)) -> € 0.00 | J37: =IF($A37="","",SUMIFS(T_Haushaltsbuch[Ausgaben (€)],T_Haushaltsbuch[Kategorie],$A37,T_Haushaltsbuch[Jahr],$B$2,T_Haushaltsbuch[Monat],9)) -> € 0.00 | K37: =IF($A37="","",SUMIFS(T_Haushaltsbuch[Ausgaben (€)],T_Haushaltsbuch[Kategorie],$A37,T_Haushaltsbuch[Jahr],$B$2,T_Haushaltsbuch[Monat],10)) -> € 0.00 | L37: =IF($A37="","",SUMIFS(T_Haushaltsbuch[Ausgaben (€)],T_Haushaltsbuch[Kategorie],$A37,T_Haushaltsbuch[Jahr],$B$2,T_Haushaltsbuch[Monat],11)) -> € 0.00 | M37: =IF($A37="","",SUMIFS(T_Haushaltsbuch[Ausgaben (€)],T_Haushaltsbuch[Kategorie],$A37,T_Haushaltsbuch[Jahr],$B$2,T_Haushaltsbuch[Monat],12)) -> € 0.00
A38: =IF(Listen!A9="","",Listen!A9) -> Transport | B38: =IF($A38="","",SUMIFS(T_Haushaltsbuch[Ausgaben (€)],T_Haushaltsbuch[Kategorie],$A38,T_Haushaltsbuch[Jahr],$B$2,T_Haushaltsbuch[Monat],1)) -> € 49.00 | C38: =IF($A38="","",SUMIFS(T_Haushaltsbuch[Ausgaben (€)],T_Haushaltsbuch[Kategorie],$A38,T_Haushaltsbuch[Jahr],$B$2,T_Haushaltsbuch[Monat],2)) -> € 0.00 | D38: =IF($A38="","",SUMIFS(T_Haushaltsbuch[Ausgaben (€)],T_Haushaltsbuch[Kategorie],$A38,T_Haushaltsbuch[Jahr],$B$2,T_Haushaltsbuch[Monat],3)) -> € 0.00 | E38: =IF($A38="","",SUMIFS(T_Haushaltsbuch[Ausgaben (€)],T_Haushaltsbuch[Kategorie],$A38,T_Haushaltsbuch[Jahr],$B$2,T_Haushaltsbuch[Monat],4)) -> € 0.00 | F38: =IF($A38="","",SUMIFS(T_Haushaltsbuch[Ausgaben (€)],T_Haushaltsbuch[Kategorie],$A38,T_Haushaltsbuch[Jahr],$B$2,T_Haushaltsbuch[Monat],5)) -> € 0.00 | G38: =IF($A38="","",SUMIFS(T_Haushaltsbuch[Ausgaben (€)],T_Haushaltsbuch[Kategorie],$A38,T_Haushaltsbuch[Jahr],$B$2,T_Haushaltsbuch[Monat],6)) -> € 0.00 | H38: =IF($A38="","",SUMIFS(T_Haushaltsbuch[Ausgaben (€)],T_Haushaltsbuch[Kategorie],$A38,T_Haushaltsbuch[Jahr],$B$2,T_Haushaltsbuch[Monat],7)) -> € 0.00 | I38: =IF($A38="","",SUMIFS(T_Haushaltsbuch[Ausgaben (€)],T_Haushaltsbuch[Kategorie],$A38,T_Haushaltsbuch[Jahr],$B$2,T_Haushaltsbuch[Monat],8)) -> € 0.00 | J38: =IF($A38="","",SUMIFS(T_Haushaltsbuch[Ausgaben (€)],T_Haushaltsbuch[Kategorie],$A38,T_Haushaltsbuch[Jahr],$B$2,T_Haushaltsbuch[Monat],9)) -> € 0.00 | K38: =IF($A38="","",SUMIFS(T_Haushaltsbuch[Ausgaben (€)],T_Haushaltsbuch[Kategorie],$A38,T_Haushaltsbuch[Jahr],$B$2,T_Haushaltsbuch[Monat],10)) -> € 0.00 | L38: =IF($A38="","",SUMIFS(T_Haushaltsbuch[Ausgaben (€)],T_Haushaltsbuch[Kategorie],$A38,T_Haushaltsbuch[Jahr],$B$2,T_Haushaltsbuch[Monat],11)) -> € 0.00 | M38: =IF($A38="","",SUMIFS(T_Haushaltsbuch[Ausgaben (€)],T_Haushaltsbuch[Kategorie],$A38,T_Haushaltsbuch[Jahr],$B$2,T_Haushaltsbuch[Monat],12)) -> € 0.00
A39: =IF(Listen!A10="","",Listen!A10) -> Auto | B39: =IF($A39="","",SUMIFS(T_Haushaltsbuch[Ausgaben (€)],T_Haushaltsbuch[Kategorie],$A39,T_Haushaltsbuch[Jahr],$B$2,T_Haushaltsbuch[Monat],1)) -> € 0.00 | C39: =IF($A39="","",SUMIFS(T_Haushaltsbuch[Ausgaben (€)],T_Haushaltsbuch[Kategorie],$A39,T_Haushaltsbuch[Jahr],$B$2,T_Haushaltsbuch[Monat],2)) -> € 0.00 | D39: =IF($A39="","",SUMIFS(T_Haushaltsbuch[Ausgaben (€)],T_Haushaltsbuch[Kategorie],$A39,T_Haushaltsbuch[Jahr],$B$2,T_Haushaltsbuch[Monat],3)) -> € 58.40 | E39: =IF($A39="","",SUMIFS(T_Haushaltsbuch[Ausgaben (€)],T_Haushaltsbuch[Kategorie],$A39,T_Haushaltsbuch[Jahr],$B$2,T_Haushaltsbuch[Monat],4)) -> € 0.00 | F39: =IF($A39="","",SUMIFS(T_Haushaltsbuch[Ausgaben (€)],T_Haushaltsbuch[Kategorie],$A39,T_Haushaltsbuch[Jahr],$B$2,T_Haushaltsbuch[Monat],5)) -> € 0.00 | G39: =IF($A39="","",SUMIFS(T_Haushaltsbuch[Ausgaben (€)],T_Haushaltsbuch[Kategorie],$A39,T_Haushaltsbuch[Jahr],$B$2,T_Haushaltsbuch[Monat],6)) -> € 0.00 | H39: =IF($A39="","",SUMIFS(T_Haushaltsbuch[Ausgaben (€)],T_Haushaltsbuch[Kategorie],$A39,T_Haushaltsbuch[Jahr],$B$2,T_Haushaltsbuch[Monat],7)) -> € 0.00 | I39: =IF($A39="","",SUMIFS(T_Haushaltsbuch[Ausgaben (€)],T_Haushaltsbuch[Kategorie],$A39,T_Haushaltsbuch[Jahr],$B$2,T_Haushaltsbuch[Monat],8)) -> € 0.00 | J39: =IF($A39="","",SUMIFS(T_Haushaltsbuch[Ausgaben (€)],T_Haushaltsbuch[Kategorie],$A39,T_Haushaltsbuch[Jahr],$B$2,T_Haushaltsbuch[Monat],9)) -> € 0.00 | K39: =IF($A39="","",SUMIFS(T_Haushaltsbuch[Ausgaben (€)],T_Haushaltsbuch[Kategorie],$A39,T_Haushaltsbuch[Jahr],$B$2,T_Haushaltsbuch[Monat],10)) -> € 0.00 | L39: =IF($A39="","",SUMIFS(T_Haushaltsbuch[Ausgaben (€)],T_Haushaltsbuch[Kategorie],$A39,T_Haushaltsbuch[Jahr],$B$2,T_Haushaltsbuch[Monat],11)) -> € 0.00 | M39: =IF($A39="","",SUMIFS(T_Haushaltsbuch[Ausgaben (€)],T_Haushaltsbuch[Kategorie],$A39,T_Haushaltsbuch[Jahr],$B$2,T_Haushaltsbuch[Monat],12)) -> € 0.00
A40: =IF(Listen!A11="","",Listen!A11) -> Gesundheit | B40: =IF($A40="","",SUMIFS(T_Haushaltsbuch[Ausgaben (€)],T_Haushaltsbuch[Kategorie],$A40,T_Haushaltsbuch[Jahr],$B$2,T_Haushaltsbuch[Monat],1)) -> € 0.00 | C40: =IF($A40="","",SUMIFS(T_Haushaltsbuch[Ausgaben (€)],T_Haushaltsbuch[Kategorie],$A40,T_Haushaltsbuch[Jahr],$B$2,T_Haushaltsbuch[Monat],2)) -> € 19.80 | D40: =IF($A40="","",SUMIFS(T_Haushaltsbuch[Ausgaben (€)],T_Haushaltsbuch[Kategorie],$A40,T_Haushaltsbuch[Jahr],$B$2,T_Haushaltsbuch[Monat],3)) -> € 0.00 | E40: =IF($A40="","",SUMIFS(T_Haushaltsbuch[Ausgaben (€)],T_Haushaltsbuch[Kategorie],$A40,T_Haushaltsbuch[Jahr],$B$2,T_Haushaltsbuch[Monat],4)) -> € 0.00 | F40: =IF($A40="","",SUMIFS(T_Haushaltsbuch[Ausgaben (€)],T_Haushaltsbuch[Kategorie],$A40,T_Haushaltsbuch[Jahr],$B$2,T_Haushaltsbuch[Monat],5)) -> € 0.00 | G40: =IF($A40="","",SUMIFS(T_Haushaltsbuch[Ausgaben (€)],T_Haushaltsbuch[Kategorie],$A40,T_Haushaltsbuch[Jahr],$B$2,T_Haushaltsbuch[Monat],6)) -> € 0.00 | H40: =IF($A40="","",SUMIFS(T_Haushaltsbuch[Ausgaben (€)],T_Haushaltsbuch[Kategorie],$A40,T_Haushaltsbuch[Jahr],$B$2,T_Haushaltsbuch[Monat],7)) -> € 0.00 | I40: =IF($A40="","",SUMIFS(T_Haushaltsbuch[Ausgaben (€)],T_Haushaltsbuch[Kategorie],$A40,T_Haushaltsbuch[Jahr],$B$2,T_Haushaltsbuch[Monat],8)) -> € 0.00 | J40: =IF($A40="","",SUMIFS(T_Haushaltsbuch[Ausgaben (€)],T_Haushaltsbuch[Kategorie],$A40,T_Haushaltsbuch[Jahr],$B$2,T_Haushaltsbuch[Monat],9)) -> € 0.00 | K40: =IF($A40="","",SUMIFS(T_Haushaltsbuch[Ausgaben (€)],T_Haushaltsbuch[Kategorie],$A40,T_Haushaltsbuch[Jahr],$B$2,T_Haushaltsbuch[Monat],10)) -> € 0.00 | L40: =IF($A40="","",SUMIFS(T_Haushaltsbuch[Ausgaben (€)],T_Haushaltsbuch[Kategorie],$A40,T_Haushaltsbuch[Jahr],$B$2,T_Haushaltsbuch[Monat],11)) -> € 0.00 | M40: =IF($A40="","",SUMIFS(T_Haushaltsbuch[Ausgaben (€)],T_Haushaltsbuch[Kategorie],$A40,T_Haushaltsbuch[Jahr],$B$2,T_Haushaltsbuch[Monat],12)) -> € 0.00
A41: =IF(Listen!A12="","",Listen!A12) -> Versicherungen | B41: =IF($A41="","",SUMIFS(T_Haushaltsbuch[Ausgaben (€)],T_Haushaltsbuch[Kategorie],$A41,T_Haushaltsbuch[Jahr],$B$2,T_Haushaltsbuch[Monat],1)) -> € 12.50 | C41: =IF($A41="","",SUMIFS(T_Haushaltsbuch[Ausgaben (€)],T_Haushaltsbuch[Kategorie],$A41,T_Haushaltsbuch[Jahr],$B$2,T_Haushaltsbuch[Monat],2)) -> € 0.00 | D41: =IF($A41="","",SUMIFS(T_Haushaltsbuch[Ausgaben (€)],T_Haushaltsbuch[Kategorie],$A41,T_Haushaltsbuch[Jahr],$B$2,T_Haushaltsbuch[Monat],3)) -> € 0.00 | E41: =IF($A41="","",SUMIFS(T_Haushaltsbuch[Ausgaben (€)],T_Haushaltsbuch[Kategorie],$A41,T_Haushaltsbuch[Jahr],$B$2,T_Haushaltsbuch[Monat],4)) -> € 0.00 | F41: =IF($A41="","",SUMIFS(T_Haushaltsbuch[Ausgaben (€)],T_Haushaltsbuch[Kategorie],$A41,T_Haushaltsbuch[Jahr],$B$2,T_Haushaltsbuch[Monat],5)) -> € 0.00 | G41: =IF($A41="","",SUMIFS(T_Haushaltsbuch[Ausgaben (€)],T_Haushaltsbuch[Kategorie],$A41,T_Haushaltsbuch[Jahr],$B$2,T_Haushaltsbuch[Monat],6)) -> € 0.00 | H41: =IF($A41="","",SUMIFS(T_Haushaltsbuch[Ausgaben (€)],T_Haushaltsbuch[Kategorie],$A41,T_Haushaltsbuch[Jahr],$B$2,T_Haushaltsbuch[Monat],7)) -> € 0.00 | I41: =IF($A41="","",SUMIFS(T_Haushaltsbuch[Ausgaben (€)],T_Haushaltsbuch[Kategorie],$A41,T_Haushaltsbuch[Jahr],$B$2,T_Haushaltsbuch[Monat],8)) -> € 0.00 | J41: =IF($A41="","",SUMIFS(T_Haushaltsbuch[Ausgaben (€)],T_Haushaltsbuch[Kategorie],$A41,T_Haushaltsbuch[Jahr],$B$2,T_Haushaltsbuch[Monat],9)) -> € 0.00 | K41: =IF($A41="","",SUMIFS(T_Haushaltsbuch[Ausgaben (€)],T_Haushaltsbuch[Kategorie],$A41,T_Haushaltsbuch[Jahr],$B$2,T_Haushaltsbuch[Monat],10)) -> € 0.00 | L41: =IF($A41="","",SUMIFS(T_Haushaltsbuch[Ausgaben (€)],T_Haushaltsbuch[Kategorie],$A41,T_Haushaltsbuch[Jahr],$B$2,T_Haushaltsbuch[Monat],11)) -> € 0.00 | M41: =IF($A41="","",SUMIFS(T_Haushaltsbuch[Ausgaben (€)],T_Haushaltsbuch[Kategorie],$A41,T_Haushaltsbuch[Jahr],$B$2,T_Haushaltsbuch[Monat],12)) -> € 0.00
A42: =IF(Listen!A13="","",Listen!A13) -> Abos | B42: =IF($A42="","",SUMIFS(T_Haushaltsbuch[Ausgaben (€)],T_Haushaltsbuch[Kategorie],$A42,T_Haushaltsbuch[Jahr],$B$2,T_Haushaltsbuch[Monat],1)) -> € 12.99 | C42: =IF($A42="","",SUMIFS(T_Haushaltsbuch[Ausgaben (€)],T_Haushaltsbuch[Kategorie],$A42,T_Haushaltsbuch[Jahr],$B$2,T_Haushaltsbuch[Monat],2)) -> € 12.99 | D42: =IF($A42="","",SUMIFS(T_Haushaltsbuch[Ausgaben (€)],T_Haushaltsbuch[Kategorie],$A42,T_Haushaltsbuch[Jahr],$B$2,T_Haushaltsbuch[Monat],3)) -> € 12.99 | E42: =IF($A42="","",SUMIFS(T_Haushaltsbuch[Ausgaben (€)],T_Haushaltsbuch[Kategorie],$A42,T_Haushaltsbuch[Jahr],$B$2,T_Haushaltsbuch[Monat],4)) -> € 0.00 | F42: =IF($A42="","",SUMIFS(T_Haushaltsbuch[Ausgaben (€)],T_Haushaltsbuch[Kategorie],$A42,T_Haushaltsbuch[Jahr],$B$2,T_Haushaltsbuch[Monat],5)) -> € 0.00 | G42: =IF($A42="","",SUMIFS(T_Haushaltsbuch[Ausgaben (€)],T_Haushaltsbuch[Kategorie],$A42,T_Haushaltsbuch[Jahr],$B$2,T_Haushaltsbuch[Monat],6)) -> € 0.00 | H42: =IF($A42="","",SUMIFS(T_Haushaltsbuch[Ausgaben (€)],T_Haushaltsbuch[Kategorie],$A42,T_Haushaltsbuch[Jahr],$B$2,T_Haushaltsbuch[Monat],7)) -> € 0.00 | I42: =IF($A42="","",SUMIFS(T_Haushaltsbuch[Ausgaben (€)],T_Haushaltsbuch[Kategorie],$A42,T_Haushaltsbuch[Jahr],$B$2,T_Haushaltsbuch[Monat],8)) -> € 0.00 | J42: =IF($A42="","",SUMIFS(T_Haushaltsbuch[Ausgaben (€)],T_Haushaltsbuch[Kategorie],$A42,T_Haushaltsbuch[Jahr],$B$2,T_Haushaltsbuch[Monat],9)) -> € 0.00 | K42: =IF($A42="","",SUMIFS(T_Haushaltsbuch[Ausgaben (€)],T_Haushaltsbuch[Kategorie],$A42,T_Haushaltsbuch[Jahr],$B$2,T_Haushaltsbuch[Monat],10)) -> € 0.00 | L42: =IF($A42="","",SUMIFS(T_Haushaltsbuch[Ausgaben (€)],T_Haushaltsbuch[Kategorie],$A42,T_Haushaltsbuch[Jahr],$B$2,T_Haushaltsbuch[Monat],11)) -> € 0.00 | M42: =IF($A42="","",SUMIFS(T_Haushaltsbuch[Ausgaben (€)],T_Haushaltsbuch[Kategorie],$A42,T_Haushaltsbuch[Jahr],$B$2,T_Haushaltsbuch[Monat],12)) -> € 0.00
A43: =IF(Listen!A14="","",Listen!A14) -> Freizeit | B43: =IF($A43="","",SUMIFS(T_Haushaltsbuch[Ausgaben (€)],T_Haushaltsbuch[Kategorie],$A43,T_Haushaltsbuch[Jahr],$B$2,T_Haushaltsbuch[Monat],1)) -> € 18.00 | C43: =IF($A43="","",SUMIFS(T_Haushaltsbuch[Ausgaben (€)],T_Haushaltsbuch[Kategorie],$A43,T_Haushaltsbuch[Jahr],$B$2,T_Haushaltsbuch[Monat],2)) -> € 42.60 | D43: =IF($A43="","",SUMIFS(T_Haushaltsbuch[Ausgaben (€)],T_Haushaltsbuch[Kategorie],$A43,T_Haushaltsbuch[Jahr],$B$2,T_Haushaltsbuch[Monat],3)) -> € 34.00 | E43: =IF($A43="","",SUMIFS(T_Haushaltsbuch[Ausgaben (€)],T_Haushaltsbuch[Kategorie],$A43,T_Haushaltsbuch[Jahr],$B$2,T_Haushaltsbuch[Monat],4)) -> € 0.00 | F43: =IF($A43="","",SUMIFS(T_Haushaltsbuch[Ausgaben (€)],T_Haushaltsbuch[Kategorie],$A43,T_Haushaltsbuch[Jahr],$B$2,T_Haushaltsbuch[Monat],5)) -> € 0.00 | G43: =IF($A43="","",SUMIFS(T_Haushaltsbuch[Ausgaben (€)],T_Haushaltsbuch[Kategorie],$A43,T_Haushaltsbuch[Jahr],$B$2,T_Haushaltsbuch[Monat],6)) -> € 0.00 | H43: =IF($A43="","",SUMIFS(T_Haushaltsbuch[Ausgaben (€)],T_Haushaltsbuch[Kategorie],$A43,T_Haushaltsbuch[Jahr],$B$2,T_Haushaltsbuch[Monat],7)) -> € 0.00 | I43: =IF($A43="","",SUMIFS(T_Haushaltsbuch[Ausgaben (€)],T_Haushaltsbuch[Kategorie],$A43,T_Haushaltsbuch[Jahr],$B$2,T_Haushaltsbuch[Monat],8)) -> € 0.00 | J43: =IF($A43="","",SUMIFS(T_Haushaltsbuch[Ausgaben (€)],T_Haushaltsbuch[Kategorie],$A43,T_Haushaltsbuch[Jahr],$B$2,T_Haushaltsbuch[Monat],9)) -> € 0.00 | K43: =IF($A43="","",SUMIFS(T_Haushaltsbuch[Ausgaben (€)],T_Haushaltsbuch[Kategorie],$A43,T_Haushaltsbuch[Jahr],$B$2,T_Haushaltsbuch[Monat],10)) -> € 0.00 | L43: =IF($A43="","",SUMIFS(T_Haushaltsbuch[Ausgaben (€)],T_Haushaltsbuch[Kategorie],$A43,T_Haushaltsbuch[Jahr],$B$2,T_Haushaltsbuch[Monat],11)) -> € 0.00 | M43: =IF($A43="","",SUMIFS(T_Haushaltsbuch[Ausgaben (€)],T_Haushaltsbuch[Kategorie],$A43,T_Haushaltsbuch[Jahr],$B$2,T_Haushaltsbuch[Monat],12)) -> € 0.00
A44: =IF(Listen!A15="","",Listen!A15) -> Kleidung | B44: =IF($A44="","",SUMIFS(T_Haushaltsbuch[Ausgaben (€)],T_Haushaltsbuch[Kategorie],$A44,T_Haushaltsbuch[Jahr],$B$2,T_Haushaltsbuch[Monat],1)) -> € 0.00 | C44: =IF($A44="","",SUMIFS(T_Haushaltsbuch[Ausgaben (€)],T_Haushaltsbuch[Kategorie],$A44,T_Haushaltsbuch[Jahr],$B$2,T_Haushaltsbuch[Monat],2)) -> € 89.99 | D44: =IF($A44="","",SUMIFS(T_Haushaltsbuch[Ausgaben (€)],T_Haushaltsbuch[Kategorie],$A44,T_Haushaltsbuch[Jahr],$B$2,T_Haushaltsbuch[Monat],3)) -> € 0.00 | E44: =IF($A44="","",SUMIFS(T_Haushaltsbuch[Ausgaben (€)],T_Haushaltsbuch[Kategorie],$A44,T_Haushaltsbuch[Jahr],$B$2,T_Haushaltsbuch[Monat],4)) -> € 0.00 | F44: =IF($A44="","",SUMIFS(T_Haushaltsbuch[Ausgaben (€)],T_Haushaltsbuch[Kategorie],$A44,T_Haushaltsbuch[Jahr],$B$2,T_Haushaltsbuch[Monat],5)) -> € 0.00 | G44: =IF($A44="","",SUMIFS(T_Haushaltsbuch[Ausgaben (€)],T_Haushaltsbuch[Kategorie],$A44,T_Haushaltsbuch[Jahr],$B$2,T_Haushaltsbuch[Monat],6)) -> € 0.00 | H44: =IF($A44="","",SUMIFS(T_Haushaltsbuch[Ausgaben (€)],T_Haushaltsbuch[Kategorie],$A44,T_Haushaltsbuch[Jahr],$B$2,T_Haushaltsbuch[Monat],7)) -> € 0.00 | I44: =IF($A44="","",SUMIFS(T_Haushaltsbuch[Ausgaben (€)],T_Haushaltsbuch[Kategorie],$A44,T_Haushaltsbuch[Jahr],$B$2,T_Haushaltsbuch[Monat],8)) -> € 0.00 | J44: =IF($A44="","",SUMIFS(T_Haushaltsbuch[Ausgaben (€)],T_Haushaltsbuch[Kategorie],$A44,T_Haushaltsbuch[Jahr],$B$2,T_Haushaltsbuch[Monat],9)) -> € 0.00 | K44: =IF($A44="","",SUMIFS(T_Haushaltsbuch[Ausgaben (€)],T_Haushaltsbuch[Kategorie],$A44,T_Haushaltsbuch[Jahr],$B$2,T_Haushaltsbuch[Monat],10)) -> € 0.00 | L44: =IF($A44="","",SUMIFS(T_Haushaltsbuch[Ausgaben (€)],T_Haushaltsbuch[Kategorie],$A44,T_Haushaltsbuch[Jahr],$B$2,T_Haushaltsbuch[Monat],11)) -> € 0.00 | M44: =IF($A44="","",SUMIFS(T_Haushaltsbuch[Ausgaben (€)],T_Haushaltsbuch[Kategorie],$A44,T_Haushaltsbuch[Jahr],$B$2,T_Haushaltsbuch[Monat],12)) -> € 0.00
A45: =IF(Listen!A16="","",Listen!A16) -> Bildung | B45: =IF($A45="","",SUMIFS(T_Haushaltsbuch[Ausgaben (€)],T_Haushaltsbuch[Kategorie],$A45,T_Haushaltsbuch[Jahr],$B$2,T_Haushaltsbuch[Monat],1)) -> € 0.00 | C45: =IF($A45="","",SUMIFS(T_Haushaltsbuch[Ausgaben (€)],T_Haushaltsbuch[Kategorie],$A45,T_Haushaltsbuch[Jahr],$B$2,T_Haushaltsbuch[Monat],2)) -> € 29.00 | D45: =IF($A45="","",SUMIFS(T_Haushaltsbuch[Ausgaben (€)],T_Haushaltsbuch[Kategorie],$A45,T_Haushaltsbuch[Jahr],$B$2,T_Haushaltsbuch[Monat],3)) -> € 0.00 | E45: =IF($A45="","",SUMIFS(T_Haushaltsbuch[Ausgaben (€)],T_Haushaltsbuch[Kategorie],$A45,T_Haushaltsbuch[Jahr],$B$2,T_Haushaltsbuch[Monat],4)) -> € 0.00 | F45: =IF($A45="","",SUMIFS(T_Haushaltsbuch[Ausgaben (€)],T_Haushaltsbuch[Kategorie],$A45,T_Haushaltsbuch[Jahr],$B$2,T_Haushaltsbuch[Monat],5)) -> € 0.00 | G45: =IF($A45="","",SUMIFS(T_Haushaltsbuch[Ausgaben (€)],T_Haushaltsbuch[Kategorie],$A45,T_Haushaltsbuch[Jahr],$B$2,T_Haushaltsbuch[Monat],6)) -> € 0.00 | H45: =IF($A45="","",SUMIFS(T_Haushaltsbuch[Ausgaben (€)],T_Haushaltsbuch[Kategorie],$A45,T_Haushaltsbuch[Jahr],$B$2,T_Haushaltsbuch[Monat],7)) -> € 0.00 | I45: =IF($A45="","",SUMIFS(T_Haushaltsbuch[Ausgaben (€)],T_Haushaltsbuch[Kategorie],$A45,T_Haushaltsbuch[Jahr],$B$2,T_Haushaltsbuch[Monat],8)) -> € 0.00 | J45: =IF($A45="","",SUMIFS(T_Haushaltsbuch[Ausgaben (€)],T_Haushaltsbuch[Kategorie],$A45,T_Haushaltsbuch[Jahr],$B$2,T_Haushaltsbuch[Monat],9)) -> € 0.00 | K45: =IF($A45="","",SUMIFS(T_Haushaltsbuch[Ausgaben (€)],T_Haushaltsbuch[Kategorie],$A45,T_Haushaltsbuch[Jahr],$B$2,T_Haushaltsbuch[Monat],10)) -> € 0.00 | L45: =IF($A45="","",SUMIFS(T_Haushaltsbuch[Ausgaben (€)],T_Haushaltsbuch[Kategorie],$A45,T_Haushaltsbuch[Jahr],$B$2,T_Haushaltsbuch[Monat],11)) -> € 0.00 | M45: =IF($A45="","",SUMIFS(T_Haushaltsbuch[Ausgaben (€)],T_Haushaltsbuch[Kategorie],$A45,T_Haushaltsbuch[Jahr],$B$2,T_Haushaltsbuch[Monat],12)) -> € 0.00
A46: =IF(Listen!A17="","",Listen!A17) -> Sonstiges | B46: =IF($A46="","",SUMIFS(T_Haushaltsbuch[Ausgaben (€)],T_Haushaltsbuch[Kategorie],$A46,T_Haushaltsbuch[Jahr],$B$2,T_Haushaltsbuch[Monat],1)) -> € 0.00 | C46: =IF($A46="","",SUMIFS(T_Haushaltsbuch[Ausgaben (€)],T_Haushaltsbuch[Kategorie],$A46,T_Haushaltsbuch[Jahr],$B$2,T_Haushaltsbuch[Monat],2)) -> € 0.00 | D46: =IF($A46="","",SUMIFS(T_Haushaltsbuch[Ausgaben (€)],T_Haushaltsbuch[Kategorie],$A46,T_Haushaltsbuch[Jahr],$B$2,T_Haushaltsbuch[Monat],3)) -> € 25.00 | E46: =IF($A46="","",SUMIFS(T_Haushaltsbuch[Ausgaben (€)],T_Haushaltsbuch[Kategorie],$A46,T_Haushaltsbuch[Jahr],$B$2,T_Haushaltsbuch[Monat],4)) -> € 0.00 | F46: =IF($A46="","",SUMIFS(T_Haushaltsbuch[Ausgaben (€)],T_Haushaltsbuch[Kategorie],$A46,T_Haushaltsbuch[Jahr],$B$2,T_Haushaltsbuch[Monat],5)) -> € 0.00 | G46: =IF($A46="","",SUMIFS(T_Haushaltsbuch[Ausgaben (€)],T_Haushaltsbuch[Kategorie],$A46,T_Haushaltsbuch[Jahr],$B$2,T_Haushaltsbuch[Monat],6)) -> € 0.00 | H46: =IF($A46="","",SUMIFS(T_Haushaltsbuch[Ausgaben (€)],T_Haushaltsbuch[Kategorie],$A46,T_Haushaltsbuch[Jahr],$B$2,T_Haushaltsbuch[Monat],7)) -> € 0.00 | I46: =IF($A46="","",SUMIFS(T_Haushaltsbuch[Ausgaben (€)],T_Haushaltsbuch[Kategorie],$A46,T_Haushaltsbuch[Jahr],$B$2,T_Haushaltsbuch[Monat],8)) -> € 0.00 | J46: =IF($A46="","",SUMIFS(T_Haushaltsbuch[Ausgaben (€)],T_Haushaltsbuch[Kategorie],$A46,T_Haushaltsbuch[Jahr],$B$2,T_Haushaltsbuch[Monat],9)) -> € 0.00 | K46: =IF($A46="","",SUMIFS(T_Haushaltsbuch[Ausgaben (€)],T_Haushaltsbuch[Kategorie],$A46,T_Haushaltsbuch[Jahr],$B$2,T_Haushaltsbuch[Monat],10)) -> € 0.00 | L46: =IF($A46="","",SUMIFS(T_Haushaltsbuch[Ausgaben (€)],T_Haushaltsbuch[Kategorie],$A46,T_Haushaltsbuch[Jahr],$B$2,T_Haushaltsbuch[Monat],11)) -> € 0.00 | M46: =IF($A46="","",SUMIFS(T_Haushaltsbuch[Ausgaben (€)],T_Haushaltsbuch[Kategorie],$A46,T_Haushaltsbuch[Jahr],$B$2,T_Haushaltsbuch[Monat],12)) -> € 0.00
A47: =IF(Listen!A18="","",Listen!A18) ->  | B47: =IF($A47="","",SUMIFS(T_Haushaltsbuch[Ausgaben (€)],T_Haushaltsbuch[Kategorie],$A47,T_Haushaltsbuch[Jahr],$B$2,T_Haushaltsbuch[Monat],1)) ->  | C47: =IF($A47="","",SUMIFS(T_Haushaltsbuch[Ausgaben (€)],T_Haushaltsbuch[Kategorie],$A47,T_Haushaltsbuch[Jahr],$B$2,T_Haushaltsbuch[Monat],2)) ->  | D47: =IF($A47="","",SUMIFS(T_Haushaltsbuch[Ausgaben (€)],T_Haushaltsbuch[Kategorie],$A47,T_Haushaltsbuch[Jahr],$B$2,T_Haushaltsbuch[Monat],3)) ->  | E47: =IF($A47="","",SUMIFS(T_Haushaltsbuch[Ausgaben (€)],T_Haushaltsbuch[Kategorie],$A47,T_Haushaltsbuch[Jahr],$B$2,T_Haushaltsbuch[Monat],4)) ->  | F47: =IF($A47="","",SUMIFS(T_Haushaltsbuch[Ausgaben (€)],T_Haushaltsbuch[Kategorie],$A47,T_Haushaltsbuch[Jahr],$B$2,T_Haushaltsbuch[Monat],5)) ->  | G47: =IF($A47="","",SUMIFS(T_Haushaltsbuch[Ausgaben (€)],T_Haushaltsbuch[Kategorie],$A47,T_Haushaltsbuch[Jahr],$B$2,T_Haushaltsbuch[Monat],6)) ->  | H47: =IF($A47="","",SUMIFS(T_Haushaltsbuch[Ausgaben (€)],T_Haushaltsbuch[Kategorie],$A47,T_Haushaltsbuch[Jahr],$B$2,T_Haushaltsbuch[Monat],7)) ->  | I47: =IF($A47="","",SUMIFS(T_Haushaltsbuch[Ausgaben (€)],T_Haushaltsbuch[Kategorie],$A47,T_Haushaltsbuch[Jahr],$B$2,T_Haushaltsbuch[Monat],8)) ->  | J47: =IF($A47="","",SUMIFS(T_Haushaltsbuch[Ausgaben (€)],T_Haushaltsbuch[Kategorie],$A47,T_Haushaltsbuch[Jahr],$B$2,T_Haushaltsbuch[Monat],9)) ->  | K47: =IF($A47="","",SUMIFS(T_Haushaltsbuch[Ausgaben (€)],T_Haushaltsbuch[Kategorie],$A47,T_Haushaltsbuch[Jahr],$B$2,T_Haushaltsbuch[Monat],10)) ->  | L47: =IF($A47="","",SUMIFS(T_Haushaltsbuch[Ausgaben (€)],T_Haushaltsbuch[Kategorie],$A47,T_Haushaltsbuch[Jahr],$B$2,T_Haushaltsbuch[Monat],11)) ->  | M47: =IF($A47="","",SUMIFS(T_Haushaltsbuch[Ausgaben (€)],T_Haushaltsbuch[Kategorie],$A47,T_Haushaltsbuch[Jahr],$B$2,T_Haushaltsbuch[Monat],12)) -> 
A48: =IF(Listen!A19="","",Listen!A19) ->  | B48: =IF($A48="","",SUMIFS(T_Haushaltsbuch[Ausgaben (€)],T_Haushaltsbuch[Kategorie],$A48,T_Haushaltsbuch[Jahr],$B$2,T_Haushaltsbuch[Monat],1)) ->  | C48: =IF($A48="","",SUMIFS(T_Haushaltsbuch[Ausgaben (€)],T_Haushaltsbuch[Kategorie],$A48,T_Haushaltsbuch[Jahr],$B$2,T_Haushaltsbuch[Monat],2)) ->  | D48: =IF($A48="","",SUMIFS(T_Haushaltsbuch[Ausgaben (€)],T_Haushaltsbuch[Kategorie],$A48,T_Haushaltsbuch[Jahr],$B$2,T_Haushaltsbuch[Monat],3)) ->  | E48: =IF($A48="","",SUMIFS(T_Haushaltsbuch[Ausgaben (€)],T_Haushaltsbuch[Kategorie],$A48,T_Haushaltsbuch[Jahr],$B$2,T_Haushaltsbuch[Monat],4)) ->  | F48: =IF($A48="","",SUMIFS(T_Haushaltsbuch[Ausgaben (€)],T_Haushaltsbuch[Kategorie],$A48,T_Haushaltsbuch[Jahr],$B$2,T_Haushaltsbuch[Monat],5)) ->  | G48: =IF($A48="","",SUMIFS(T_Haushaltsbuch[Ausgaben (€)],T_Haushaltsbuch[Kategorie],$A48,T_Haushaltsbuch[Jahr],$B$2,T_Haushaltsbuch[Monat],6)) ->  | H48: =IF($A48="","",SUMIFS(T_Haushaltsbuch[Ausgaben (€)],T_Haushaltsbuch[Kategorie],$A48,T_Haushaltsbuch[Jahr],$B$2,T_Haushaltsbuch[Monat],7)) ->  | I48: =IF($A48="","",SUMIFS(T_Haushaltsbuch[Ausgaben (€)],T_Haushaltsbuch[Kategorie],$A48,T_Haushaltsbuch[Jahr],$B$2,T_Haushaltsbuch[Monat],8)) ->  | J48: =IF($A48="","",SUMIFS(T_Haushaltsbuch[Ausgaben (€)],T_Haushaltsbuch[Kategorie],$A48,T_Haushaltsbuch[Jahr],$B$2,T_Haushaltsbuch[Monat],9)) ->  | K48: =IF($A48="","",SUMIFS(T_Haushaltsbuch[Ausgaben (€)],T_Haushaltsbuch[Kategorie],$A48,T_Haushaltsbuch[Jahr],$B$2,T_Haushaltsbuch[Monat],10)) ->  | L48: =IF($A48="","",SUMIFS(T_Haushaltsbuch[Ausgaben (€)],T_Haushaltsbuch[Kategorie],$A48,T_Haushaltsbuch[Jahr],$B$2,T_Haushaltsbuch[Monat],11)) ->  | M48: =IF($A48="","",SUMIFS(T_Haushaltsbuch[Ausgaben (€)],T_Haushaltsbuch[Kategorie],$A48,T_Haushaltsbuch[Jahr],$B$2,T_Haushaltsbuch[Monat],12)) -> 
A49: =IF(Listen!A20="","",Listen!A20) ->  | B49: =IF($A49="","",SUMIFS(T_Haushaltsbuch[Ausgaben (€)],T_Haushaltsbuch[Kategorie],$A49,T_Haushaltsbuch[Jahr],$B$2,T_Haushaltsbuch[Monat],1)) ->  | C49: =IF($A49="","",SUMIFS(T_Haushaltsbuch[Ausgaben (€)],T_Haushaltsbuch[Kategorie],$A49,T_Haushaltsbuch[Jahr],$B$2,T_Haushaltsbuch[Monat],2)) ->  | D49: =IF($A49="","",SUMIFS(T_Haushaltsbuch[Ausgaben (€)],T_Haushaltsbuch[Kategorie],$A49,T_Haushaltsbuch[Jahr],$B$2,T_Haushaltsbuch[Monat],3)) ->  | E49: =IF($A49="","",SUMIFS(T_Haushaltsbuch[Ausgaben (€)],T_Haushaltsbuch[Kategorie],$A49,T_Haushaltsbuch[Jahr],$B$2,T_Haushaltsbuch[Monat],4)) ->  | F49: =IF($A49="","",SUMIFS(T_Haushaltsbuch[Ausgaben (€)],T_Haushaltsbuch[Kategorie],$A49,T_Haushaltsbuch[Jahr],$B$2,T_Haushaltsbuch[Monat],5)) ->  | G49: =IF($A49="","",SUMIFS(T_Haushaltsbuch[Ausgaben (€)],T_Haushaltsbuch[Kategorie],$A49,T_Haushaltsbuch[Jahr],$B$2,T_Haushaltsbuch[Monat],6)) ->  | H49: =IF($A49="","",SUMIFS(T_Haushaltsbuch[Ausgaben (€)],T_Haushaltsbuch[Kategorie],$A49,T_Haushaltsbuch[Jahr],$B$2,T_Haushaltsbuch[Monat],7)) ->  | I49: =IF($A49="","",SUMIFS(T_Haushaltsbuch[Ausgaben (€)],T_Haushaltsbuch[Kategorie],$A49,T_Haushaltsbuch[Jahr],$B$2,T_Haushaltsbuch[Monat],8)) ->  | J49: =IF($A49="","",SUMIFS(T_Haushaltsbuch[Ausgaben (€)],T_Haushaltsbuch[Kategorie],$A49,T_Haushaltsbuch[Jahr],$B$2,T_Haushaltsbuch[Monat],9)) ->  | K49: =IF($A49="","",SUMIFS(T_Haushaltsbuch[Ausgaben (€)],T_Haushaltsbuch[Kategorie],$A49,T_Haushaltsbuch[Jahr],$B$2,T_Haushaltsbuch[Monat],10)) ->  | L49: =IF($A49="","",SUMIFS(T_Haushaltsbuch[Ausgaben (€)],T_Haushaltsbuch[Kategorie],$A49,T_Haushaltsbuch[Jahr],$B$2,T_Haushaltsbuch[Monat],11)) ->  | M49: =IF($A49="","",SUMIFS(T_Haushaltsbuch[Ausgaben (€)],T_Haushaltsbuch[Kategorie],$A49,T_Haushaltsbuch[Jahr],$B$2,T_Haushaltsbuch[Monat],12)) -> 
A50: =IF(Listen!A21="","",Listen!A21) ->  | B50: =IF($A50="","",SUMIFS(T_Haushaltsbuch[Ausgaben (€)],T_Haushaltsbuch[Kategorie],$A50,T_Haushaltsbuch[Jahr],$B$2,T_Haushaltsbuch[Monat],1)) ->  | C50: =IF($A50="","",SUMIFS(T_Haushaltsbuch[Ausgaben (€)],T_Haushaltsbuch[Kategorie],$A50,T_Haushaltsbuch[Jahr],$B$2,T_Haushaltsbuch[Monat],2)) ->  | D50: =IF($A50="","",SUMIFS(T_Haushaltsbuch[Ausgaben (€)],T_Haushaltsbuch[Kategorie],$A50,T_Haushaltsbuch[Jahr],$B$2,T_Haushaltsbuch[Monat],3)) ->  | E50: =IF($A50="","",SUMIFS(T_Haushaltsbuch[Ausgaben (€)],T_Haushaltsbuch[Kategorie],$A50,T_Haushaltsbuch[Jahr],$B$2,T_Haushaltsbuch[Monat],4)) ->  | F50: =IF($A50="","",SUMIFS(T_Haushaltsbuch[Ausgaben (€)],T_Haushaltsbuch[Kategorie],$A50,T_Haushaltsbuch[Jahr],$B$2,T_Haushaltsbuch[Monat],5)) ->  | G50: =IF($A50="","",SUMIFS(T_Haushaltsbuch[Ausgaben (€)],T_Haushaltsbuch[Kategorie],$A50,T_Haushaltsbuch[Jahr],$B$2,T_Haushaltsbuch[Monat],6)) ->  | H50: =IF($A50="","",SUMIFS(T_Haushaltsbuch[Ausgaben (€)],T_Haushaltsbuch[Kategorie],$A50,T_Haushaltsbuch[Jahr],$B$2,T_Haushaltsbuch[Monat],7)) ->  | I50: =IF($A50="","",SUMIFS(T_Haushaltsbuch[Ausgaben (€)],T_Haushaltsbuch[Kategorie],$A50,T_Haushaltsbuch[Jahr],$B$2,T_Haushaltsbuch[Monat],8)) ->  | J50: =IF($A50="","",SUMIFS(T_Haushaltsbuch[Ausgaben (€)],T_Haushaltsbuch[Kategorie],$A50,T_Haushaltsbuch[Jahr],$B$2,T_Haushaltsbuch[Monat],9)) ->  | K50: =IF($A50="","",SUMIFS(T_Haushaltsbuch[Ausgaben (€)],T_Haushaltsbuch[Kategorie],$A50,T_Haushaltsbuch[Jahr],$B$2,T_Haushaltsbuch[Monat],10)) ->  | L50: =IF($A50="","",SUMIFS(T_Haushaltsbuch[Ausgaben (€)],T_Haushaltsbuch[Kategorie],$A50,T_Haushaltsbuch[Jahr],$B$2,T_Haushaltsbuch[Monat],11)) ->  | M50: =IF($A50="","",SUMIFS(T_Haushaltsbuch[Ausgaben (€)],T_Haushaltsbuch[Kategorie],$A50,T_Haushaltsbuch[Jahr],$B$2,T_Haushaltsbuch[Monat],12)) -> 
A51: Total | B51: =SUM(B31:B50) -> € 1,283.83 | C51: € 1,400.68 | D51: € 1,201.54 | E51: € 0.00 | F51: € 0.00 | G51: € 0.00 | H51: € 0.00 | I51: € 0.00 | J51: € 0.00 | K51: € 0.00 | L51: € 0.00 | M51: € 0.00
